bitfinex-derivatives/quotes_BNBF0:USTF0_20250810
["timestamp","ask_amount","ask_price","bid_price","bid_amount"]
[1754817780818,0.68863137,801.45,800.52,1.312]
[1754817781018,0.68863137,801.44,800.52,1.312]
[1754817781224,0.68863137,801.43,800.52,1.312]
[1754817781420,0.68863137,801.42,800.52,1.312]
[1754817781624,0.68863137,801.41,800.52,1.312]
[1754817781927,0.68863137,801.4,800.52,1.312]
[1754817782124,0.68863137,801.39,800.52,1.312]
[1754817782321,0.68863137,801.38,800.52,1.312]
[1754817782620,0.68863137,801.37,800.52,1.312]
[1754817782825,2.79290881,801.64,800.52,1.312]
[1754817783130,0.68850631,801.63,800.52,1.312]
[1754817783332,0.68850631,801.62,800.52,1.312]
[1754817783526,0.68850631,801.61,800.52,1.312]
[1754817783725,0.68850631,801.6,800.52,1.312]
[1754817783933,2.79290881,801.65,800.52,1.312]
[1754817783934,0.68850631,801.59,800.52,1.312]
[1754817784127,2.79290881,801.44,800.52,1.312]
[1754817784324,0.68850631,801.43,800.52,1.312]
[1754817784527,0.68850631,801.42,800.52,1.312]
[1754817784728,0.68850631,801.41,800.52,1.312]
[1754817784928,0.68850631,801.4,800.52,1.312]
[1754817785125,0.68850631,801.39,800.52,1.312]
[1754817785329,0.68850631,801.38,800.52,1.312]
[1754817785530,0.68850631,801.37,800.52,1.312]
[1754817785829,0.68850631,801.36,800.52,1.312]
[1754817786126,0.68850631,801.35,800.52,1.312]
[1754817786425,0.68850631,801.34,800.52,1.312]
[1754817786630,0.68850631,801.33,800.52,1.312]
[1754817786829,0.68850631,801.32,800.52,1.312]
[1754817787126,0.68850631,801.31,800.52,1.312]
[1754817787326,0.68850631,801.3,800.52,1.312]
[1754817787625,0.68850631,801.29,800.52,1.312]
[1754817787828,0.68850631,801.28,800.52,1.312]
[1754817788131,0.68850631,801.27,800.52,1.312]
[1754817788333,0.68850631,801.26,800.52,1.312]
[1754817788531,0.68850631,801.25,800.52,1.312]
[1754817788832,2.79290881,801.84,800.52,1.312]
[1754817788833,0.68850631,801.24,800.52,1.312]
[1754817789033,0.68850631,801.23,800.52,1.312]
[1754817789229,2.79290881,801.86,800.52,1.312]
[1754817789430,0.67362294,801.85,800.52,1.312]
[1754817789634,0.67362294,801.84,800.52,1.312]
[1754817789834,2.79290881,801.74,800.52,1.312]
[1754817790032,0.67362294,801.73,800.52,1.312]
[1754817790332,0.67362294,801.72,800.52,1.312]
[1754817790529,0.67362294,801.71,800.52,1.312]
[1754817790734,0.67362294,801.7,800.52,1.312]
[1754817790934,0.67362294,801.69,800.52,1.312]
[1754817791231,0.67362294,801.68,800.52,1.312]
[1754817791430,0.67362294,801.67,800.52,1.312]
[1754817791633,0.67362294,801.66,800.52,1.312]
[1754817791842,0.67362294,801.65,800.52,1.312]
[1754817792030,0.67362294,801.64,800.52,1.312]
[1754817792235,0.67362294,801.63,800.52,1.312]
[1754817792430,0.67362294,801.62,800.52,1.312]
[1754817792628,0.67362294,801.61,800.52,1.312]
[1754817792830,0.67362294,801.6,800.52,1.312]
[1754817793132,0.67362294,801.59,800.52,1.312]
[1754817793332,0.67362294,801.58,800.52,1.312]
[1754817793532,0.67362294,801.57,800.52,1.312]
[1754817793734,0.67362294,801.56,800.52,1.312]
[1754817793928,1.67232021,800.91,800.52,1.312]
[1754817794332,1.67232021,800.93,800.52,1.312]
[1754817795134,1.67232021,800.65,800.52,1.312]
[1754817796041,1.67232021,800.66,800.52,1.312]
[1754817796437,1.67232021,800.71,800.52,1.312]
[1754817797147,3.91007233,801.8,800.52,1.312]
[1754817797148,1.67232021,800.72,800.52,1.312]
[1754817798137,1.67232021,800.74,800.52,1.312]
[1754817799240,1.67232021,800.72,800.52,1.312]
[1754817799437,1.67232021,800.73,800.52,1.312]
[1754817800539,1.67232021,800.74,800.52,1.312]
[1754817801145,1.67232021,800.75,800.52,1.312]
[1754817801441,1.67232021,800.73,800.52,1.312]
[1754817802045,1.67232021,800.68,800.52,1.312]
[1754817802245,1.67232021,800.7,800.52,1.312]
[1754817802746,1.67232021,800.69,800.52,1.312]
[1754817803246,1.67232021,800.7,800.52,1.312]
[1754817803446,1.67232021,800.75,800.52,1.312]
[1754817803942,1.67232021,800.74,800.52,1.312]
[1754817804147,1.67232021,800.75,800.52,1.312]
[1754817805049,1.67232021,800.88,800.52,1.312]
[1754817805249,1.67232021,800.85,800.52,1.312]
[1754817805650,1.67232021,800.87,800.52,1.312]
[1754817806249,1.67232021,800.89,800.52,1.312]
[1754817806543,1.67232021,800.85,800.52,1.312]
[1754817807250,1.67232021,800.86,800.52,1.312]
[1754817808149,1.67232021,800.87,800.52,1.312]
[1754817809046,1.67232021,800.88,800.52,1.312]
[1754817810248,1.67232021,800.89,800.52,1.312]
[1754817810454,1.67232021,800.88,800.52,1.312]
[1754817811152,1.67232021,800.89,800.52,1.312]
[1754817811854,1.67232021,800.87,800.52,1.312]
[1754817812253,2.79290881,801.54,800.52,1.312]
[1754817812254,1.67232021,800.88,800.52,1.312]
[1754817813355,1.67232021,800.75,800.52,1.312]
[1754817814755,1.67232021,801.0,800.52,1.312]
[1754817815055,1.67232021,800.92,800.52,1.312]
[1754817815256,3.91007233,801.53,800.52,1.312]
[1754817815257,1.67232021,800.93,800.52,1.312]
[1754817815456,0.67020212,800.92,800.52,1.312]
[1754817815756,1.67232021,800.93,800.52,1.312]
[1754817815952,1.67232021,801.1,800.52,1.312]
[1754817816153,0.67020212,801.09,800.52,1.312]
[1754817816358,0.67020212,801.08,800.52,1.312]
[1754817816554,0.67020212,801.07,800.52,1.312]
[1754817816758,0.67020212,801.06,800.52,1.312]
[1754817816959,2.79290881,802.16,800.52,1.312]
[1754817816960,0.67020212,801.05,800.52,1.312]
[1754817817159,0.67020212,801.04,800.52,1.312]
[1754817817454,0.67020212,801.03,800.52,1.312]
[1754817817660,0.67020212,801.02,800.52,1.312]
[1754817817860,0.67020212,801.01,800.52,1.312]
[1754817818054,0.67020212,801.0,800.52,1.312]
[1754817818357,1.67232021,801.15,800.52,1.312]
[1754817818558,0.66996428,801.14,800.52,1.312]
[1754817818758,0.66996428,801.13,800.51,0.21694881]
[1754817818958,0.66996428,801.12,800.51,0.21694881]
[1754817819155,1.67232021,800.88,800.51,0.21694881]
[1754817819354,1.67232021,800.87,800.51,0.21694881]
[1754817821257,1.67232021,800.86,800.51,0.21694881]
[1754817823258,1.67232021,800.85,800.51,0.21694881]
[1754817824458,1.67232021,800.84,800.51,0.21694881]
[1754817824963,1.67232021,800.93,800.51,0.21694881]
[1754817825360,1.67232021,800.92,799.98,1.166]
[1754817825565,1.67232021,800.92,800.55,0.21713223]
[1754817825761,1.67232021,800.9,800.55,0.21713223]
[1754817825965,1.67232021,800.88,800.01,0.288]
[1754817826167,1.67232021,800.88,800.58,0.21712614]
[1754817826465,1.67232021,800.91,800.58,0.21712614]
[1754817826666,1.67232021,800.93,800.58,0.21712614]
[1754817827167,1.67232021,800.92,800.58,0.21712614]
[1754817827462,1.67232021,800.91,800.58,0.21712614]
[1754817827663,1.67232021,800.9,800.58,0.21712614]
[1754817827963,1.67232021,801.08,800.58,0.21712614]
[1754817828166,2.34298101,801.07,800.58,0.21712614]
[1754817828367,2.34298101,801.06,800.58,0.21712614]
[1754817828564,0.6706608,801.05,800.58,0.21712614]
[1754817828763,0.6706608,801.04,800.58,0.21712614]
[1754817828963,0.6706608,801.03,800.58,0.21712614]
[1754817829167,0.6706608,801.02,800.58,0.21712614]
[1754817829368,2.34298101,801.01,800.58,0.21712614]
[1754817829564,0.6706608,801.0,800.58,0.21712614]
[1754817829766,0.6706608,800.99,800.58,0.21712614]
[1754817829967,0.6706608,800.98,800.58,0.21712614]
[1754817830168,1.67232021,801.0,800.58,0.21712614]
[1754817830364,2.3432627,800.99,800.58,0.21712614]
[1754817830668,1.67232021,800.99,800.58,0.21712614]
[1754817831067,1.67232021,800.98,800.58,0.21712614]
[1754817831267,1.67232021,800.97,800.58,0.21712614]
[1754817832167,1.67232021,800.96,800.58,0.21712614]
[1754817832468,1.67232021,800.95,800.58,0.21712614]
[1754817833267,1.67232021,800.92,800.58,0.21712614]
[1754817834470,2.79290881,801.77,800.58,0.21712614]
[1754817834471,1.67232021,800.89,800.58,0.21712614]
[1754817834964,3.91007233,802.17,800.58,0.21712614]
[1754817834965,1.67232021,800.74,800.58,0.21712614]
[1754817835167,1.67232021,800.71,800.58,0.21712614]
[1754817836166,1.67232021,800.7,800.58,0.21712614]
[1754817836370,1.67232021,800.67,800.58,0.21712614]
[1754817836566,1.67232021,800.65,800.58,0.21712614]
[1754817837167,1.67232021,800.64,800.58,0.21712614]
[1754817837467,1.67232021,800.62,800.58,0.21712614]
[1754817837673,2.79290881,801.02,800.58,0.01539799]
[1754817837866,0.67313088,801.01,800.58,0.01539799]
[1754817838071,0.67313088,801.0,799.98,1.166]
[1754817838268,1.6738213,800.33,799.98,1.166]
[1754817839269,1.6738213,800.3,799.98,1.166]
[1754817840273,1.6738213,800.35,799.98,1.166]
[1754817840470,1.6738213,800.4,799.84,0.5]
[1754817840773,1.6738213,800.46,800.08,0.292]
[1754817840973,1.6738213,800.47,800.0,0.5]
[1754817841473,1.6738213,800.39,800.0,0.5]
[1754817842275,1.6738213,800.37,800.0,0.5]
[1754817843073,1.6738213,800.36,800.0,0.5]
[1754817843974,1.6738213,800.36,799.97,0.21716001]
[1754817844173,1.6738213,800.34,799.97,0.21716001]
[1754817844773,1.6738213,800.38,799.97,0.21716001]
[1754817845172,2.79290881,801.08,799.97,0.21716001]
[1754817845173,1.6738213,800.58,799.97,0.21716001]
[1754817845576,1.6738213,800.6,799.97,0.21716001]
[1754817845873,1.6738213,800.59,800.01,0.33]
[1754817846072,1.6738213,800.57,799.97,0.21716001]
[1754817846977,1.6738213,800.58,799.97,0.21716001]
[1754817847274,1.6738213,800.57,800.01,0.291]
[1754817847478,1.6738213,800.57,799.97,0.21716001]
[1754817847878,1.6738213,800.57,800.01,0.294]
[1754817848178,1.6738213,800.57,799.97,0.21716001]
[1754817849478,1.6738213,800.55,799.97,0.21716001]
[1754817849775,1.6738213,800.57,799.97,0.21716001]
[1754817850177,1.6738213,800.56,799.97,0.21716001]
[1754817850578,1.6738213,800.55,799.97,0.21716001]
[1754817854676,1.6738213,800.5,799.97,0.21716001]
[1754817854880,1.6738213,800.49,799.97,0.21716001]
[1754817855081,1.6738213,800.5,799.97,0.21716001]
[1754817855381,1.6738213,800.56,800.01,0.294]
[1754817855880,1.6738213,800.56,800.01,0.5]
[1754817856480,1.6738213,800.56,799.97,0.21716001]
[1754817857182,1.6738213,800.56,800.01,0.288]
[1754817857382,1.6738213,800.56,799.97,0.21716001]
[1754817857680,1.6738213,800.55,799.97,0.21716001]
[1754817858177,1.6738213,800.59,799.97,0.21716001]
[1754817859478,1.6738213,800.57,799.97,0.21716001]
[1754817860977,1.6738213,800.57,800.01,0.5]
[1754817861380,1.6738213,800.57,800.01,0.324]
[1754817861580,1.6738213,800.56,799.97,0.21716001]
[1754817862376,1.6738213,800.56,800.07,0.288]
[1754817862580,1.6738213,800.56,799.97,0.21716001]
[1754817862780,1.6738213,800.56,800.08,0.288]
[1754817862976,1.6738213,800.56,800.02,0.5]
[1754817863179,1.6738213,800.57,800.02,0.5]
[1754817864277,1.6738213,800.57,799.97,0.21716001]
[1754817865078,1.6738213,800.55,799.97,0.21716001]
[1754817866181,1.6738213,800.56,799.97,0.21716001]
[1754817867082,1.6738213,800.55,799.97,0.21716001]
[1754817867886,1.6738213,800.51,799.97,0.21716001]
[1754817869086,1.6738213,800.54,799.97,0.21716001]
[1754817870183,1.6738213,800.54,800.0,0.33]
[1754817870388,1.6738213,800.54,800.0,0.291]
[1754817870585,1.6738213,800.54,799.97,0.21716001]
[1754817870889,1.6738213,800.54,800.0,0.291]
[1754817871384,1.6738213,800.56,800.0,0.291]
[1754817871788,1.6738213,800.56,799.97,0.21716001]
[1754817872185,1.6738213,800.74,799.98,0.72176415]
[1754817872389,1.6738213,800.74,799.97,0.21716001]
[1754817872688,1.6738213,800.74,799.98,0.72176415]
[1754817872888,1.6738213,800.74,799.97,0.21716001]
[1754817873089,1.6738213,800.74,799.98,0.72176408]
[1754817873289,1.6738213,800.74,799.97,0.21716001]
[1754817873586,1.6738213,800.74,799.98,0.72175352]
[1754817873785,1.6738213,800.74,799.97,0.21716001]
[1754817873985,1.6738213,800.74,799.98,0.72175352]
[1754817874188,1.6738213,800.74,799.97,0.21716001]
[1754817874389,1.6738213,800.74,799.98,0.7217449]
[1754817874586,1.6738213,800.74,799.97,0.21716001]
[1754817874789,1.6738213,800.74,799.98,0.7217449]
[1754817874986,1.6738213,800.91,799.99,0.72174479]
[1754817875289,1.6738213,800.9,800.0,0.72174479]
[1754817875487,1.6738213,800.9,800.01,0.72174479]
[1754817875690,1.6738213,800.9,800.02,0.72174479]
[1754817875991,1.6738213,800.9,800.03,0.72174479]
[1754817876191,1.6738213,800.9,800.04,0.72174479]
[1754817876389,1.6738213,800.9,800.05,0.72174479]
[1754817876591,1.6738213,800.9,800.06,0.72174479]
[1754817876790,1.6738213,800.9,800.07,0.72174479]
[1754817876990,1.6738213,800.9,800.08,0.72174479]
[1754817877189,1.6738213,800.9,800.09,0.72174479]
[1754817877491,1.6738213,800.9,800.1,0.72174479]
[1754817877688,1.6738213,800.89,800.11,0.72174479]
[1754817877988,1.6738213,800.89,800.12,0.72174479]
[1754817878191,1.6738213,800.88,800.13,0.72174479]
[1754817878490,1.6738213,800.89,800.14,0.72174479]
[1754817878690,1.6738213,800.89,800.15,0.72174479]
[1754817878890,1.6738213,800.88,800.16,0.72174479]
[1754817879092,1.6738213,800.88,799.97,0.21716001]
[1754817879391,1.6738213,800.88,799.98,0.72199521]
[1754817879588,1.6738213,800.89,799.99,0.72199521]
[1754817879787,1.6738213,800.89,800.0,0.72199521]
[1754817879986,1.6738213,800.89,800.01,0.72199521]
[1754817880191,1.6738213,800.89,800.02,0.72199521]
[1754817880491,1.6738213,800.89,799.97,0.21716001]
[1754817880492,1.6738213,800.89,800.03,0.72199521]
[1754817880691,1.6738213,800.89,800.04,0.72199521]
[1754817880889,1.6738213,800.89,800.05,0.72199521]
[1754817881089,1.6738213,800.89,800.06,0.72199521]
[1754817881290,1.6738213,800.89,800.07,0.72199521]
[1754817881486,1.6738213,800.89,800.08,0.72199521]
[1754817881690,1.6738213,800.89,800.09,0.72199521]
[1754817881890,1.6738213,800.89,800.1,0.72199521]
[1754817882092,1.6738213,800.76,800.11,0.72199521]
[1754817882390,1.6738213,800.76,799.97,0.21716001]
[1754817882692,1.6738213,800.75,799.98,0.72205843]
[1754817882889,1.6738213,800.8,799.99,0.72205843]
[1754817883088,1.6738213,800.8,799.97,0.21716001]
[1754817883089,1.6738213,800.8,800.0,0.72205843]
[1754817883289,1.6738213,800.8,799.97,0.21716001]
[1754817883290,1.6738213,800.8,800.01,0.72205843]
[1754817883491,1.6738213,800.8,800.02,0.72205843]
[1754817883692,1.6738213,800.8,800.03,0.72205843]
[1754817883891,1.6738213,800.76,800.04,0.72205843]
[1754817884094,1.6738213,800.76,800.05,0.72205843]
[1754817884291,1.6738213,800.76,800.06,0.72205843]
[1754817884493,1.6738213,800.76,800.07,0.72205843]
[1754817884692,1.6738213,800.76,800.08,0.72205843]
[1754817884998,1.6738213,800.76,800.07,1.221]
[1754817885193,1.6738213,800.52,800.07,1.221]
[1754817885693,1.6738213,800.5,800.07,1.221]
[1754817886597,1.6738213,800.49,800.07,1.221]
[1754817887096,1.6738213,800.5,800.07,1.221]
[1754817887293,1.6738213,800.49,800.07,1.221]
[1754817887796,1.6738213,800.58,800.07,1.221]
[1754817888099,1.6738213,800.52,800.07,1.221]
[1754817888993,2.79290881,801.28,800.07,1.221]
[1754817888994,1.6738213,800.53,800.07,1.221]
[1754817889494,1.6738213,800.45,800.07,1.221]
[1754817889698,1.6738213,800.44,800.07,1.221]
[1754817890293,1.6738213,800.46,800.07,1.221]
[1754817891298,1.6738213,800.47,800.07,1.221]
[1754817892194,1.6738213,800.46,800.07,1.221]
[1754817892393,1.6738213,800.24,800.07,1.221]
[1754817892594,1.6738213,800.19,800.07,1.221]
[1754817893098,1.6738213,800.22,800.07,1.221]
[1754817893298,3.91007233,801.24,800.07,1.221]
[1754817893299,1.6738213,800.14,800.07,1.221]
[1754817894097,1.6738213,800.13,800.07,1.221]
[1754817894298,1.6738213,800.16,800.07,1.221]
[1754817894498,1.6738213,800.15,800.07,1.221]
[1754817894694,2.79290881,800.81,800.07,1.221]
[1754817894898,2.79290881,800.72,800.07,1.221]
[1754817895096,1.67532829,800.08,800.07,1.221]
[1754817895302,1.67532829,800.12,800.07,1.221]
[1754817896299,1.67532829,800.16,800.07,1.221]
[1754817896599,1.67532829,800.18,800.07,1.221]
[1754817897201,1.67532829,800.22,800.07,1.221]
[1754817898197,1.67532829,800.26,800.07,1.221]
[1754817898402,1.67532829,800.24,800.07,1.221]
[1754817899002,1.67532829,800.23,800.07,1.221]
[1754817899302,1.67532829,800.26,800.07,1.221]
[1754817901499,1.67532829,800.3,800.07,1.221]
[1754817902396,1.67532829,800.33,800.07,1.221]
[1754817903399,1.67532829,800.35,800.07,1.221]
[1754817904204,1.67532829,800.36,800.07,1.221]
[1754817904407,1.67532829,800.38,800.07,1.221]
[1754817904702,1.67532829,800.33,800.07,1.221]
[1754817905105,1.67532829,800.24,800.07,1.221]
[1754817905304,1.67532829,800.25,800.07,1.221]
[1754817905504,1.67532829,800.27,800.07,1.221]
[1754817906106,1.67532829,800.29,800.07,1.221]
[1754817907307,1.67532829,800.31,800.07,1.221]
[1754817908304,1.67532829,800.28,800.07,1.221]
[1754817908706,1.67532829,800.52,800.07,1.221]
[1754817909507,1.67532829,800.53,800.07,1.221]
[1754817910208,1.67532829,800.54,800.07,1.221]
[1754817910510,1.67532829,800.58,800.07,1.221]
[1754817911308,1.67532829,800.63,800.07,1.221]
[1754817911603,1.67532829,800.68,800.07,1.221]
[1754817912309,1.67532829,800.69,800.07,1.221]
[1754817912806,1.67532829,800.82,800.07,1.221]
[1754817913010,0.66914926,800.81,800.07,1.221]
[1754817913209,1.67532829,800.71,800.07,1.221]
[1754817915108,1.67532829,800.77,800.07,1.221]
[1754817915311,0.669187,800.76,800.07,1.221]
[1754817915508,0.669187,800.75,800.07,1.221]
[1754817915712,1.67532829,800.77,800.07,1.221]
[1754817916013,0.66923291,800.76,800.07,1.221]
[1754817916208,1.67532829,800.81,800.07,1.221]
[1754817916411,0.6692818,800.8,800.07,1.221]
[1754817916713,0.6692818,800.79,800.07,1.221]
[1754817917009,1.67532829,800.83,800.07,1.221]
[1754817917212,0.66929604,800.82,800.07,1.221]
[1754817917413,0.66929604,800.81,800.07,1.221]
[1754817917613,1.67532829,800.88,800.07,1.221]
[1754817917909,0.6693672,800.87,799.97,0.21716001]
[1754817918113,0.6693672,800.86,799.97,0.21716001]
[1754817918314,0.6693672,800.85,799.97,0.21716001]
[1754817918511,1.67532829,800.93,799.97,0.21716001]
[1754817918711,0.66945766,800.92,799.97,0.21716001]
[1754817918910,0.66945766,800.91,799.97,0.21716001]
[1754817919116,0.66945766,800.9,799.97,0.21716001]
[1754817919314,3.91007233,802.11,799.97,0.21716001]
[1754817919315,0.66945766,800.89,799.97,0.21716001]
[1754817919516,1.67532829,800.92,799.97,0.21716001]
[1754817919812,0.66949765,800.91,799.97,0.21716001]
[1754817920016,0.66949765,800.9,799.97,0.21716001]
[1754817920216,0.66949765,800.89,799.97,0.21716001]
[1754817920416,1.67532829,800.92,799.97,0.21716001]
[1754817920616,0.66954285,800.91,799.97,0.21716001]
[1754817920816,2.34487114,800.9,799.97,0.21716001]
[1754817921018,0.66954285,800.89,799.97,0.21716001]
[1754817921217,1.67532829,800.9,799.98,1.427]
[1754817921416,2.34495674,800.89,799.98,1.427]
[1754817921621,1.67532829,800.89,799.98,1.427]
[1754817922621,1.67532829,800.77,799.98,1.427]
[1754817922817,1.67532829,800.78,799.98,1.427]
[1754817923022,1.67532829,800.77,799.98,1.427]
[1754817923221,1.67532829,800.78,799.98,1.427]
[1754817923421,1.67532829,800.77,799.98,1.427]
[1754817923718,1.67532829,800.78,799.98,1.427]
[1754817924419,1.67532829,800.77,799.98,1.427]
[1754817924822,1.67532829,800.8,799.98,1.427]
[1754817925319,1.67532829,800.67,799.98,1.427]
[1754817925522,1.67532829,800.68,799.98,1.427]
[1754817927425,1.67532829,800.63,799.98,1.427]
[1754817928325,1.67532829,800.61,799.98,1.427]
[1754817929320,1.67532829,800.6,799.98,1.427]
[1754817930626,1.67532829,800.64,799.98,1.427]
[1754817930822,1.67532829,800.7,799.98,1.427]
[1754817931623,1.67532829,800.72,799.98,1.427]
[1754817932123,1.67532829,800.71,799.98,1.427]
[1754817932323,1.67532829,800.7,799.98,1.427]
[1754817932929,1.67532829,800.71,799.98,1.427]
[1754817933224,1.67532829,800.7,799.98,1.427]
[1754817934725,1.67532829,800.68,799.98,1.427]
[1754817935027,1.67532829,800.78,799.98,1.427]
[1754817935428,1.67532829,800.76,799.98,1.427]
[1754817937329,1.67532829,800.75,799.98,1.427]
[1754817939128,1.67532829,800.74,799.98,1.427]
[1754817939828,1.67532829,800.75,799.98,1.427]
[1754817940229,1.67532829,800.74,799.98,1.427]
[1754817940532,1.67532829,800.7,799.98,1.427]
[1754817941533,1.67532829,800.65,799.98,1.427]
[1754817942334,1.67532829,800.65,799.97,0.21716001]
[1754817944238,1.67532829,800.64,799.97,0.21716001]
[1754817944740,2.79290881,801.16,799.97,0.21716001]
[1754817944741,1.67532829,800.66,799.97,0.21716001]
[1754817945039,1.67532829,800.67,799.97,0.21716001]
[1754817946243,1.67532829,800.66,799.98,1.26]
[1754817947639,1.67532829,800.65,799.98,1.26]
[1754817948140,1.67532829,800.7,799.98,1.26]
[1754817949141,1.67532829,800.71,799.98,1.26]
[1754817949340,1.67532829,800.7,799.98,1.26]
[1754817951141,1.67532829,800.71,799.98,1.26]
[1754817951437,1.67532829,800.72,799.98,1.26]
[1754817952341,1.67532829,800.73,799.98,1.26]
[1754817952739,1.67532829,800.72,799.98,1.26]
[1754817954538,1.67532829,800.71,799.98,1.26]
[1754817955141,1.67532829,800.72,799.98,1.26]
[1754817956137,1.67532829,800.71,799.98,1.26]
[1754817957139,1.67532829,800.7,799.98,1.26]
[1754817958141,1.67532829,800.65,799.98,1.26]
[1754817958347,1.67532829,800.64,799.98,1.26]
[1754817959248,1.67532829,800.63,799.98,1.26]
[1754817959749,1.67532829,800.82,799.98,1.26]
[1754817960445,1.67532829,800.86,799.98,1.26]
[1754817960748,1.67532829,800.9,799.98,1.26]
[1754817961348,1.67532829,800.87,799.98,1.26]
[1754817961844,1.67532829,800.85,799.98,1.26]
[1754817962149,1.67532829,800.84,799.98,1.26]
[1754817962348,1.67532829,800.83,799.98,1.26]
[1754817963251,1.67532829,800.82,799.98,1.26]
[1754817963450,1.67532829,800.81,799.98,1.26]
[1754817964350,1.67532829,800.79,799.98,1.26]
[1754817965051,1.67532829,800.96,799.98,1.26]
[1754817965246,1.67532829,800.95,799.98,1.26]
[1754817965451,1.67532829,800.93,799.98,1.26]
[1754817966451,1.67532829,800.91,799.98,1.26]
[1754817967248,1.67532829,800.9,799.98,1.26]
[1754817967553,1.67532829,800.87,799.98,1.26]
[1754817968351,1.67532829,800.84,799.98,1.26]
[1754817969351,1.67532829,800.82,799.98,1.26]
[1754817969549,1.67532829,800.75,799.98,1.26]
[1754817970052,1.67532829,800.74,799.98,1.26]
[1754817970249,1.67532829,800.66,799.98,1.26]
[1754817970451,1.67532829,800.53,799.98,1.26]
[1754817971256,1.67532829,800.52,799.98,1.26]
[1754817971452,1.67532829,800.51,799.98,1.26]
[1754817972456,1.67532829,800.5,799.98,1.26]
[1754817973353,1.67532829,800.49,799.98,1.26]
[1754817973858,1.67532829,800.48,799.98,1.26]
[1754817974256,1.67532829,800.47,799.98,1.26]
[1754817975161,1.67532829,800.28,799.98,1.26]
[1754817976162,1.67532829,800.27,799.98,1.26]
[1754817977361,1.67532829,800.26,799.98,1.26]
[1754817978058,2.79290881,800.86,799.98,1.26]
[1754817978059,1.67532829,800.36,799.98,1.26]
[1754817978458,1.67532829,800.35,799.98,1.26]
[1754817980057,1.67532829,800.34,799.98,1.26]
[1754817980262,3.91007233,801.34,799.98,1.26]
[1754817980263,1.67532829,800.38,799.98,1.26]
[1754817980659,1.67532829,800.39,799.98,1.26]
[1754817981163,1.67532829,800.38,799.98,1.26]
[1754817982663,1.67532829,800.39,799.98,1.26]
[1754817983559,1.67532829,800.4,799.98,1.26]
[1754817983759,1.67532829,800.36,799.98,1.26]
[1754817985063,1.67532829,800.43,799.98,1.26]
[1754817988063,1.67532829,800.38,799.98,1.26]
[1754817989367,2.79290881,801.03,799.98,1.26]
[1754817989368,1.67532829,800.39,799.98,1.26]
[1754817990164,1.67532829,800.34,799.98,1.26]
[1754817991165,1.67532829,800.33,799.98,1.26]
[1754817991367,1.67532829,800.34,799.98,1.26]
[1754817991571,1.67532829,800.37,799.98,1.26]
[1754817992675,1.67532829,800.36,799.98,1.26]
[1754817993477,1.67532829,800.35,799.98,1.26]
[1754817993680,1.67532829,800.54,799.98,1.26]
[1754817995079,1.67532829,800.53,799.98,1.26]
[1754817995379,1.67532829,800.59,799.98,1.26]
[1754817995579,1.67532829,800.62,799.98,1.26]
[1754817995779,1.67532829,800.65,799.98,1.26]
[1754817996476,1.67532829,800.66,799.98,1.26]
[1754817997478,1.67532829,800.65,799.98,1.26]
[1754817998479,1.67532829,800.64,799.98,1.26]
[1754817999782,1.67532829,800.45,799.98,1.26]
[1754818000382,1.67532829,800.46,799.97,0.21716001]
[1754818004280,1.67532829,800.46,799.98,1.711]
[1754818004784,1.67532829,800.42,799.98,1.711]
[1754818004979,1.67532829,800.41,799.98,1.711]
[1754818005184,1.67532829,800.58,799.98,1.711]
[1754818005484,1.67532829,800.57,799.98,1.711]
[1754818006384,1.67532829,800.55,799.98,1.711]
[1754818007585,1.67532829,800.54,799.98,1.711]
[1754818008482,1.67532829,800.65,799.98,1.711]
[1754818009186,1.67532829,800.66,799.98,1.711]
[1754818012384,1.67532829,800.65,799.98,1.711]
[1754818012589,1.67532829,800.66,799.98,1.711]
[1754818012884,1.67532829,800.65,799.98,1.711]
[1754818013092,1.67532829,800.84,799.99,0.71101164]
[1754818013389,1.67532829,800.84,800.0,0.71101164]
[1754818013586,1.67532829,800.84,799.98,1.711]
[1754818013788,1.67532829,800.84,799.99,0.71101654]